[Event "*** Titled Tuesday 3|2 Blitz"]
[Site "Chess.com"]
[Date "2016.05.03"]
[Round "8"]
[White "iturrizaga"]
[Black "Hikaru"]
[Result "1-0"]
[WhiteElo "2593"]
[BlackElo "2835"]
[TimeControl "180+2"]
[EndTime "12:42:32 PDT"]
[Termination "iturrizaga won by resignation"]

1. Nf3 {[%clk 0:03:01.9]} 1... d5 {[%clk 0:02:53]} 2. c4 {[%clk 0:03:02.1]} 2...
d4 {[%clk 0:02:52.8]} 3. b4 {[%clk 0:03:02.4]} 3... Nf6 {[%clk 0:02:52.3]} 4.
Bb2 {[%clk 0:03:02.6]} 4... Bg4 {[%clk 0:02:49.1]} 5. Nxd4 {[%clk 0:02:58.9]}
5... e5 {[%clk 0:02:49.8]} 6. Nc2 {[%clk 0:03:00]} 6... Nbd7 {[%clk 0:02:48.6]}
7. g3 {[%clk 0:02:56.6]} 7... h5 {[%clk 0:02:47.3]} 8. h3 {[%clk 0:02:55.6]}
8... Be6 {[%clk 0:02:48.2]} 9. d3 {[%clk 0:02:54]} 9... c6 {[%clk 0:02:41.3]}
10. Bg2 {[%clk 0:02:53.6]} 10... Qc7 {[%clk 0:02:42.3]} 11. Nd2 {[%clk
0:02:51.8]} 11... O-O-O {[%clk 0:02:39.5]} 12. a4 {[%clk 0:02:50.2]} 12... e4
{[%clk 0:02:36.4]} 13. Nxe4 {[%clk 0:02:46.4]} 13... Nxe4 {[%clk 0:02:37.1]} 14.
Bxe4 {[%clk 0:02:48.1]} 14... Nf6 {[%clk 0:02:36]} 15. Bg2 {[%clk 0:02:13.8]}
15... Bxc4 {[%clk 0:02:34.4]} 16. O-O {[%clk 0:02:07.8]} 16... Bd5 {[%clk
0:02:34.7]} 17. b5 {[%clk 0:01:45.4]} 17... Bc5 {[%clk 0:02:26.6]} 18. d4 {[%clk
0:01:41.7]} 18... h4 {[%clk 0:02:26.7]} 19. g4 {[%clk 0:01:16.9]} 19... Bd6
{[%clk 0:02:27.1]} 20. Qd3 {[%clk 0:01:15.8]} 20... Rhe8 {[%clk 0:02:19.7]} 21.
bxc6 {[%clk 0:01:14.9]} 21... Kb8 {[%clk 0:02:02.6]} 22. f3 {[%clk 0:00:47.6]}
22... Bxc6 {[%clk 0:01:56.7]} 23. e4 {[%clk 0:00:43]} 23... Qe7 {[%clk 0:01:52]}
24. Rfd1 {[%clk 0:00:40.3]} 24... Nd7 {[%clk 0:01:45.4]} 25. Ba3 {[%clk
0:00:38.5]} 25... Ne5 {[%clk 0:01:34.6]} 26. dxe5 {[%clk 0:00:32.8]} 26... Bc5+
{[%clk 0:01:34.2]} 27. Bxc5 {[%clk 0:00:31.4]} 27... Qxc5+ {[%clk 0:01:35.1]}
28. Nd4 {[%clk 0:00:32.9]} 1-0

[Event "*** Titled Tuesday 3|2 Blitz"]
[Site "Chess.com"]
[Date "2016.05.03"]
[Round "8"]
[White "Alexander_Donchenko"]
[Black "Stameny"]
[Result "1-0"]
[WhiteElo "2640"]
[BlackElo "2429"]
[TimeControl "180+2"]
[EndTime "12:42:37 PDT"]
[Termination "Alexander_Donchenko won on time"]

1. e4 {[%clk 0:03:01.9]} 1... c5 {[%clk 0:03:00.4]} 2. Nf3 {[%clk 0:03:02.9]}
2... d6 {[%clk 0:03:01.5]} 3. d4 {[%clk 0:03:04.1]} 3... cxd4 {[%clk 0:03:01.9]}
4. Nxd4 {[%clk 0:03:06]} 4... Nf6 {[%clk 0:03:03.1]} 5. Nc3 {[%clk 0:03:06.6]}
5... g6 {[%clk 0:03:03.7]} 6. Be3 {[%clk 0:03:04.6]} 6... Bg7 {[%clk 0:02:58.6]}
7. f3 {[%clk 0:03:05.6]} 7... a6 {[%clk 0:02:59.1]} 8. Bc4 {[%clk 0:03:03.3]}
8... b5 {[%clk 0:02:59.7]} 9. Bb3 {[%clk 0:03:04.2]} 9... Bb7 {[%clk 0:03:01.2]}
10. Qd2 {[%clk 0:03:05.1]} 10... h5 {[%clk 0:03:01.9]} 11. O-O-O {[%clk
0:03:04.8]} 11... Nbd7 {[%clk 0:03:03.2]} 12. h3 {[%clk 0:03:01.3]} 12... Rc8
{[%clk 0:02:56.2]} 13. g4 {[%clk 0:03:00.6]} 13... Ne5 {[%clk 0:02:57.1]} 14. g5
{[%clk 0:02:57.4]} 14... Nfd7 {[%clk 0:02:56.2]} 15. Nd5 {[%clk 0:02:52.9]}
15... Nc4 {[%clk 0:02:51.5]} 16. Bxc4 {[%clk 0:02:53.8]} 16... Rxc4 {[%clk
0:02:48]} 17. b3 {[%clk 0:02:54.4]} 17... Rc8 {[%clk 0:02:43.6]} 18. f4 {[%clk
0:02:54.9]} 18... Nc5 {[%clk 0:02:29.3]} 19. Qg2 {[%clk 0:02:55.6]} 19... e6
{[%clk 0:02:26.5]} 20. f5 {[%clk 0:02:52.5]} 20... gxf5 {[%clk 0:02:12]} 21.
Nxf5 {[%clk 0:02:44.1]} 21... Be5 {[%clk 0:02:05.3]} 22. Nf6+ {[%clk 0:02:36.3]}
22... Kf8 {[%clk 0:02:00.7]} 23. g6 {[%clk 0:02:36.2]} 23... fxg6 {[%clk
0:01:48.8]} 24. Nxd6 {[%clk 0:02:17.8]} 24... Bxf6 {[%clk 0:00:56.8]} 25. Nxb7
{[%clk 0:02:12]} 25... Nxb3+ {[%clk 0:00:52]} 26. axb3 {[%clk 0:02:10.8]} 26...
Qc7 {[%clk 0:00:53.2]} 27. Nc5 {[%clk 0:02:08.6]} 27... Kf7 {[%clk 0:00:42.8]}
28. Rd7+ {[%clk 0:02:08]} 1-0

[Event "*** Titled Tuesday 3|2 Blitz"]
[Site "Chess.com"]
[Date "2016.05.03"]
[Round "8"]
[White "Grootneus"]
[Black "Fariasov-inactive"]
[Result "1-0"]
[WhiteElo "2050"]
[BlackElo "2158"]
[TimeControl "180+2"]
[EndTime "12:43:02 PDT"]
[Termination "Grootneus won by resignation"]

1. e4 {[%clk 0:02:59.4]} 1... c5 {[%clk 0:02:59.2]} 2. c3 {[%clk 0:03:00.1]}
2... d5 {[%clk 0:02:59.7]} 3. exd5 {[%clk 0:03:02]} 3... Qxd5 {[%clk 0:03:00.4]}
4. d4 {[%clk 0:03:03.7]} 4... Nf6 {[%clk 0:03:01.7]} 5. Nf3 {[%clk 0:03:04.5]}
5... Bg4 {[%clk 0:03:02.9]} 6. Be2 {[%clk 0:03:05.8]} 6... Nc6 {[%clk
0:03:04.1]} 7. O-O {[%clk 0:03:04.4]} 7... cxd4 {[%clk 0:03:05.3]} 8. cxd4
{[%clk 0:03:05.1]} 8... e6 {[%clk 0:03:06.7]} 9. h3 {[%clk 0:03:05.8]} 9... Bh5
{[%clk 0:03:04.3]} 10. Nc3 {[%clk 0:03:06.6]} 10... Qd8 {[%clk 0:03:05.1]} 11.
Be3 {[%clk 0:03:06.4]} 11... Be7 {[%clk 0:03:05.6]} 12. Qb3 {[%clk 0:03:08]}
12... O-O {[%clk 0:03:04.4]} 13. g4 {[%clk 0:03:05.6]} 13... Bg6 {[%clk
0:03:04.5]} 14. Rfd1 {[%clk 0:03:00.3]} 14... Nd5 {[%clk 0:02:59.2]} 15. Nxd5
{[%clk 0:02:47]} 15... exd5 {[%clk 0:02:59.7]} 16. Ne5 {[%clk 0:02:46.3]} 16...
Qd6 {[%clk 0:02:11.8]} 17. Bf4 {[%clk 0:02:35.6]} 17... Nxe5 {[%clk 0:02:08.3]}
18. dxe5 {[%clk 0:02:31.5]} 18... Qb6 {[%clk 0:02:05.8]} 19. Qxb6 {[%clk
0:02:32]} 19... axb6 {[%clk 0:02:06.6]} 20. Rxd5 {[%clk 0:02:33.3]} 20... Bc5
{[%clk 0:02:04.3]} 21. Bf3 {[%clk 0:02:24.8]} 21... Rfd8 {[%clk 0:01:58.8]} 22.
Rxd8+ {[%clk 0:02:22.8]} 22... Rxd8 {[%clk 0:01:59.6]} 23. Bxb7 {[%clk
0:02:24.4]} 23... h5 {[%clk 0:01:55]} 24. a3 {[%clk 0:02:22.7]} 24... hxg4
{[%clk 0:01:51.3]} 25. hxg4 {[%clk 0:02:23.4]} 25... Rd3 {[%clk 0:01:52.1]} 26.
b4 {[%clk 0:02:20.8]} 26... Bd4 {[%clk 0:01:53]} 27. Rc1 {[%clk 0:02:16.1]}
27... Rxa3 {[%clk 0:01:50.5]} 28. Rc8+ {[%clk 0:02:09.6]} 28... Kh7 {[%clk
0:01:50.3]} 29. b5 {[%clk 0:02:10.5]} 29... Ra2 {[%clk 0:01:50.8]} 30. Be3
{[%clk 0:02:04.2]} 30... Bxe3 {[%clk 0:01:43]} 31. fxe3 {[%clk 0:02:06.1]} 31...
Re2 {[%clk 0:01:43.7]} 32. Rc6 {[%clk 0:02:06.7]} 32... Rxe3 {[%clk 0:01:43.5]}
33. Rxb6 {[%clk 0:02:07.9]} 33... Rxe5 {[%clk 0:01:44.5]} 34. Bc6 {[%clk
0:02:00.2]} 34... Bd3 {[%clk 0:01:45.2]} 35. Rb7 {[%clk 0:02:00.3]} 35... Kg6
{[%clk 0:01:42.9]} 36. b6 {[%clk 0:01:57.1]} 36... Re2 {[%clk 0:01:43.1]} 37.
Bd5 {[%clk 0:01:44.7]} 37... f5 {[%clk 0:01:38.6]} 38. gxf5+ {[%clk 0:01:38.9]}
38... Bxf5 {[%clk 0:01:37.3]} 39. Rb8 {[%clk 0:01:36.7]} 39... Rb2 {[%clk
0:01:37.2]} 40. b7 {[%clk 0:01:38]} 40... Kg5 {[%clk 0:01:29.3]} 41. Rg8 {[%clk
0:01:32.9]} 1-0

[Event "*** Titled Tuesday 3|2 Blitz"]
[Site "Chess.com"]
[Date "2016.05.03"]
[Round "8"]
[White "Gevorg_Harutjunyan"]
[Black "ChadaevNikolay"]
[Result "1-0"]
[WhiteElo "2619"]
[BlackElo "2559"]
[TimeControl "180+2"]
[EndTime "12:43:04 PDT"]
[Termination "Gevorg_Harutjunyan won by resignation"]

1. e4 {[%clk 0:03:01.9]} 1... c5 {[%clk 0:03:00.5]} 2. Nc3 {[%clk 0:03:02.9]}
2... Nc6 {[%clk 0:03:00.9]} 3. Bb5 {[%clk 0:03:03]} 3... Nd4 {[%clk 0:03:01.1]}
4. Bc4 {[%clk 0:03:04.3]} 4... g6 {[%clk 0:03:01.9]} 5. Nf3 {[%clk 0:03:05.5]}
5... Bg7 {[%clk 0:03:02.6]} 6. Nxd4 {[%clk 0:03:06.8]} 6... cxd4 {[%clk
0:03:03.5]} 7. Qf3 {[%clk 0:03:08.4]} 7... Nh6 {[%clk 0:03:04.4]} 8. Ne2 {[%clk
0:03:09.6]} 8... O-O {[%clk 0:02:58.3]} 9. d3 {[%clk 0:03:10.6]} 9... Ng4 {[%clk
0:02:56.5]} 10. Bb3 {[%clk 0:03:11.9]} 10... d6 {[%clk 0:02:52.5]} 11. Qg3
{[%clk 0:03:09.2]} 11... a5 {[%clk 0:02:32.8]} 12. a4 {[%clk 0:03:08.8]} 12...
Qc7 {[%clk 0:02:27.4]} 13. h4 {[%clk 0:03:03.5]} 13... h5 {[%clk 0:01:37.9]} 14.
f3 {[%clk 0:02:39.3]} 14... Ne5 {[%clk 0:01:36.7]} 15. Nxd4 {[%clk 0:02:36.2]}
15... Qb6 {[%clk 0:01:26.4]} 16. Be3 {[%clk 0:02:26.4]} 16... Qb4+ {[%clk
0:01:21.3]} 17. c3 {[%clk 0:02:19]} 17... Qb6 {[%clk 0:01:22.1]} 18. O-O {[%clk
0:02:12.3]} 18... e6 {[%clk 0:01:14.8]} 19. Rae1 {[%clk 0:01:56.9]} 19... Nxd3
{[%clk 0:01:04.2]} 20. Nb5 {[%clk 0:01:57.5]} 20... Nc5 {[%clk 0:00:30.4]} 21.
Rd1 {[%clk 0:01:54.1]} 21... Rd8 {[%clk 0:00:28.9]} 22. Bc2 {[%clk 0:01:44.5]}
22... Qc6 {[%clk 0:00:13.9]} 23. e5 {[%clk 0:01:43.6]} 23... d5 {[%clk
0:00:14.4]} 24. Qg5 {[%clk 0:01:39.1]} 24... Bd7 {[%clk 0:00:15.1]} 25. g4
{[%clk 0:01:39.2]} 25... hxg4 {[%clk 0:00:14.7]} 26. h5 {[%clk 0:01:40.2]} 26...
gxf3 {[%clk 0:00:14.5]} 27. hxg6 {[%clk 0:01:39.4]} 27... Be8 {[%clk 0:00:14.5]}
28. gxf7+ {[%clk 0:01:39.5]} 28... Bxf7 {[%clk 0:00:15.7]} 29. Rxf3 {[%clk
0:01:41]} 29... Ne4 {[%clk 0:00:16.9]} 30. Bxe4 {[%clk 0:01:39.5]} 30... dxe4
{[%clk 0:00:18.2]} 31. Rxd8+ {[%clk 0:01:39.8]} 1-0

[Event "*** Titled Tuesday 3|2 Blitz"]
[Site "Chess.com"]
[Date "2016.05.03"]
[Round "8"]
[White "evgenyermolaev"]
[Black "Kawhi_Leonard2"]
[Result "1-0"]
[WhiteElo "2297"]
[BlackElo "2083"]
[TimeControl "180+2"]
[EndTime "12:43:08 PDT"]
[Termination "evgenyermolaev won on time"]

1. e4 {[%clk 0:03:01.9]} 1... c5 {[%clk 0:03:00.1]} 2. Nf3 {[%clk 0:03:02.8]}
2... d6 {[%clk 0:03:00.9]} 3. d4 {[%clk 0:03:04.1]} 3... cxd4 {[%clk 0:03:01.8]}
4. Nxd4 {[%clk 0:03:06]} 4... Nf6 {[%clk 0:03:03.3]} 5. Nc3 {[%clk 0:03:06.8]}
5... g6 {[%clk 0:03:04.8]} 6. Be3 {[%clk 0:03:07.9]} 6... Bg7 {[%clk 0:03:05.7]}
7. f3 {[%clk 0:03:09.2]} 7... Nc6 {[%clk 0:03:06.8]} 8. Qd2 {[%clk 0:03:09.9]}
8... O-O {[%clk 0:03:08.3]} 9. g4 {[%clk 0:03:11.1]} 9... Be6 {[%clk 0:03:07.4]}
10. Nxe6 {[%clk 0:03:11.1]} 10... fxe6 {[%clk 0:03:07.8]} 11. O-O-O {[%clk
0:03:11.5]} 11... Ne5 {[%clk 0:03:08.4]} 12. Be2 {[%clk 0:03:12.2]} 12... Qc8
{[%clk 0:03:09.2]} 13. Nb5 {[%clk 0:03:12.6]} 13... Nc4 {[%clk 0:02:57.8]} 14.
Qd3 {[%clk 0:02:46.7]} 14... Nxe3 {[%clk 0:02:07.8]} 15. Qxe3 {[%clk 0:02:46.5]}
15... Nd7 {[%clk 0:02:07.6]} 16. Nd4 {[%clk 0:02:42.2]} 16... Ne5 {[%clk
0:02:01.8]} 17. f4 {[%clk 0:02:40.3]} 17... Nc4 {[%clk 0:02:01.8]} 18. Qb3
{[%clk 0:02:39.3]} 18... b5 {[%clk 0:01:40.5]} 19. Qxb5 {[%clk 0:02:32.2]} 19...
Ne3 {[%clk 0:01:14.8]} 20. Qb3 {[%clk 0:02:16.3]} 20... Nxd1 {[%clk 0:01:13.2]}
21. Nxe6 {[%clk 0:02:17.1]} 21... Nc3 {[%clk 0:00:52.5]} 22. Nxf8+ {[%clk
0:01:44.7]} 22... Kxf8 {[%clk 0:00:52.2]} 23. bxc3 {[%clk 0:01:45.6]} 23... Rb8
{[%clk 0:00:49.1]} 24. Qc4 {[%clk 0:01:44.6]} 24... Qb7 {[%clk 0:00:30.6]} 25.
Kd2 {[%clk 0:01:44.3]} 25... Rc8 {[%clk 0:00:30.7]} 26. Qd5 {[%clk 0:01:40.5]}
26... Bxc3+ {[%clk 0:00:30.6]} 27. Ke3 {[%clk 0:01:41.3]} 27... Qb6+ {[%clk
0:00:30]} 28. Kf3 {[%clk 0:01:41.9]} 28... Bg7 {[%clk 0:00:24.4]} 29. Bc4 {[%clk
0:01:40.7]} 29... Rxc4 {[%clk 0:00:10.1]} 30. Qxc4 {[%clk 0:01:41.4]} 1-0

[Event "*** Titled Tuesday 3|2 Blitz"]
[Site "Chess.com"]
[Date "2016.05.03"]
[Round "8"]
[White "AndrewMcStone"]
[Black "JusticeBot"]
[Result "0-1"]
[WhiteElo "1986"]
[BlackElo "2526"]
[TimeControl "180+2"]
[EndTime "12:43:12 PDT"]
[Termination "JusticeBot won by resignation"]

1. d4 {[%clk 0:03:01.9]} 1... Nf6 {[%clk 0:03:00]} 2. c4 {[%clk 0:02:55.3]} 2...
e6 {[%clk 0:03:01.4]} 3. Nc3 {[%clk 0:02:56.4]} 3... Bb4 {[%clk 0:03:02.2]} 4.
f3 {[%clk 0:02:57.6]} 4... d5 {[%clk 0:02:59.9]} 5. a3 {[%clk 0:02:58.3]} 5...
Bxc3+ {[%clk 0:03:00.4]} 6. bxc3 {[%clk 0:03:00.2]} 6... c5 {[%clk 0:03:01.8]}
7. cxd5 {[%clk 0:03:01.3]} 7... Nxd5 {[%clk 0:03:02.2]} 8. dxc5 {[%clk
0:03:01.6]} 8... Qa5 {[%clk 0:03:02.9]} 9. e4 {[%clk 0:03:03]} 9... Nf6 {[%clk
0:02:57.4]} 10. Be3 {[%clk 0:03:04.1]} 10... O-O {[%clk 0:02:55.2]} 11. Qb3
{[%clk 0:03:03.6]} 11... e5 {[%clk 0:02:37.1]} 12. Bc4 {[%clk 0:03:01.9]} 12...
Qc7 {[%clk 0:02:34.4]} 13. Ne2 {[%clk 0:02:55.7]} 13... Nfd7 {[%clk 0:02:31.5]}
14. Bd5 {[%clk 0:02:20.5]} 14... Na6 {[%clk 0:02:18]} 15. O-O {[%clk 0:02:06.6]}
15... Naxc5 {[%clk 0:02:19.1]} 16. Qa2 {[%clk 0:01:58.8]} 16... Rb8 {[%clk
0:02:13.3]} 17. c4 {[%clk 0:01:52.2]} 17... b6 {[%clk 0:02:06.1]} 18. Ng3 {[%clk
0:01:19.4]} 18... Ba6 {[%clk 0:02:05.8]} 19. f4 {[%clk 0:01:15.3]} 19... Nf6
{[%clk 0:01:55.1]} 20. Nf5 {[%clk 0:00:36.5]} 20... Ncxe4 {[%clk 0:01:28.6]} 21.
fxe5 {[%clk 0:00:12.5]} 21... Nxd5 {[%clk 0:01:25.5]} 22. cxd5 {[%clk
0:00:10.4]} 22... Bxf1 {[%clk 0:01:27]} 23. Rxf1 {[%clk 0:00:09.2]} 23... Nc3
{[%clk 0:01:24.8]} 24. Qf2 {[%clk 0:00:08.7]} 24... Nxd5 {[%clk 0:01:21.8]} 25.
Qg3 {[%clk 0:00:08.8]} 25... f6 {[%clk 0:01:17.9]} 26. Nh6+ {[%clk 0:00:07.9]}
26... Kh8 {[%clk 0:01:17.8]} 27. Nf5 {[%clk 0:00:08.1]} 27... fxe5 {[%clk
0:01:16.5]} 0-1

[Event "*** Titled Tuesday 3|2 Blitz"]
[Site "Chess.com"]
[Date "2016.05.03"]
[Round "8"]
[White "norwaytoadog"]
[Black "Fh2411"]
[Result "0-1"]
[WhiteElo "2049"]
[BlackElo "2270"]
[TimeControl "180+2"]
[EndTime "12:43:28 PDT"]
[Termination "Fh2411 won by resignation"]

1. e4 {[%clk 0:02:15.5]} 1... c5 {[%clk 0:02:50.6]} 2. Nf3 {[%clk 0:02:15.6]}
2... e6 {[%clk 0:02:51.2]} 3. d3 {[%clk 0:02:15.2]} 3... a6 {[%clk 0:02:46]} 4.
g3 {[%clk 0:02:14.4]} 4... b5 {[%clk 0:02:47]} 5. Bg2 {[%clk 0:02:15.2]} 5...
Bb7 {[%clk 0:02:47.6]} 6. O-O {[%clk 0:02:15.9]} 6... Nc6 {[%clk 0:02:48.4]} 7.
c3 {[%clk 0:02:14.6]} 7... d6 {[%clk 0:02:42.8]} 8. Qe2 {[%clk 0:02:13.9]} 8...
Nf6 {[%clk 0:02:43.6]} 9. a4 {[%clk 0:02:10.9]} 9... Be7 {[%clk 0:02:42.5]} 10.
Na3 {[%clk 0:02:11.2]} 10... Qb6 {[%clk 0:02:36.5]} 11. h3 {[%clk 0:02:05.9]}
11... O-O {[%clk 0:02:35.9]} 12. Be3 {[%clk 0:02:04.6]} 12... Na5 {[%clk
0:02:15.8]} 13. b4 {[%clk 0:01:58.6]} 13... Nb3 {[%clk 0:02:13.8]} 14. bxc5
{[%clk 0:01:53]} 14... dxc5 {[%clk 0:02:12.1]} 15. Rab1 {[%clk 0:01:51.1]} 15...
bxa4 {[%clk 0:02:11.2]} 16. Nc4 {[%clk 0:01:49.9]} 16... Qc7 {[%clk 0:02:11.8]}
17. Bf4 {[%clk 0:01:41.3]} 17... Qd8 {[%clk 0:02:08.9]} 18. Rfd1 {[%clk
0:01:37.4]} 18... Nd7 {[%clk 0:02:02.5]} 19. Qa2 {[%clk 0:01:32.9]} 19... Bc6
{[%clk 0:02:03]} 20. Nfe5 {[%clk 0:01:28.9]} 20... Nxe5 {[%clk 0:01:59.8]} 21.
Nxe5 {[%clk 0:01:29.3]} 21... Be8 {[%clk 0:01:59.2]} 22. d4 {[%clk 0:01:26.1]}
22... cxd4 {[%clk 0:01:55.7]} 23. cxd4 {[%clk 0:01:26.1]} 23... Rc8 {[%clk
0:01:56.6]} 24. d5 {[%clk 0:01:25.6]} 24... exd5 {[%clk 0:01:57.2]} 25. exd5
{[%clk 0:01:11.1]} 25... Bd6 {[%clk 0:01:51.9]} 26. Nc6 {[%clk 0:01:06.8]} 26...
Qf6 {[%clk 0:01:50.5]} 27. Bxd6 {[%clk 0:01:01.3]} 27... Qxd6 {[%clk 0:01:52.4]}
28. Qxa4 {[%clk 0:01:00.7]} 28... Nc5 {[%clk 0:01:50.3]} 29. Qa3 {[%clk
0:00:53]} 29... Bd7 {[%clk 0:01:35.5]} 30. Rbc1 {[%clk 0:00:45]} 30... Nb7
{[%clk 0:01:25.9]} 31. Qxa6 {[%clk 0:00:45.3]} 31... Nd8 {[%clk 0:01:20.4]} 32.
Nxd8 {[%clk 0:00:39.6]} 32... Qxa6 {[%clk 0:01:19.9]} 0-1

[Event "*** Titled Tuesday 3|2 Blitz"]
[Site "Chess.com"]
[Date "2016.05.03"]
[Round "8"]
[White "oggy1984"]
[Black "Bentery"]
[Result "0-1"]
[WhiteElo "2318"]
[BlackElo "2363"]
[TimeControl "180+2"]
[EndTime "12:44:08 PDT"]
[Termination "Bentery won by resignation"]

1. e4 {[%clk 0:02:58.9]} 1... e6 {[%clk 0:03:00.9]} 2. d4 {[%clk 0:02:58.7]}
2... d5 {[%clk 0:03:02.4]} 3. Nc3 {[%clk 0:02:59.1]} 3... Nf6 {[%clk 0:03:03.7]}
4. Bg5 {[%clk 0:02:55.3]} 4... Bb4 {[%clk 0:03:04.2]} 5. e5 {[%clk 0:02:54.4]}
5... h6 {[%clk 0:03:05.4]} 6. Bd2 {[%clk 0:02:54.7]} 6... Bxc3 {[%clk
0:03:05.6]} 7. bxc3 {[%clk 0:02:53.7]} 7... Ne4 {[%clk 0:03:07.5]} 8. Bd3 {[%clk
0:02:46.6]} 8... Nxd2 {[%clk 0:03:07.1]} 9. Qxd2 {[%clk 0:02:46.9]} 9... c5
{[%clk 0:03:04.8]} 10. Nf3 {[%clk 0:02:42.2]} 10... Qa5 {[%clk 0:03:04.5]} 11.
O-O {[%clk 0:02:37.5]} 11... Nd7 {[%clk 0:02:56.4]} 12. Qf4 {[%clk 0:02:35.3]}
12... Qxc3 {[%clk 0:02:54.4]} 13. Qg4 {[%clk 0:02:31.9]} 13... O-O {[%clk
0:02:55.1]} 14. Rfe1 {[%clk 0:01:49.7]} 14... c4 {[%clk 0:02:54.8]} 15. Bf1
{[%clk 0:01:42.1]} 15... Qxc2 {[%clk 0:02:55.4]} 16. h4 {[%clk 0:01:41.5]} 16...
Nb6 {[%clk 0:02:47.1]} 17. a4 {[%clk 0:01:38.1]} 17... Bd7 {[%clk 0:02:44.3]}
18. a5 {[%clk 0:01:37.5]} 18... Na4 {[%clk 0:02:45.6]} 19. Rec1 {[%clk
0:01:24.8]} 19... Qf5 {[%clk 0:02:39.4]} 20. Qxf5 {[%clk 0:01:24.7]} 20... exf5
{[%clk 0:02:40.1]} 21. Rc2 {[%clk 0:01:24.2]} 21... b5 {[%clk 0:02:39]} 22. axb6
{[%clk 0:01:07.7]} 22... axb6 {[%clk 0:02:40.9]} 23. e6 {[%clk 0:01:05.3]} 23...
Bxe6 {[%clk 0:02:38.2]} 24. Ne5 {[%clk 0:01:00.5]} 24... Rfc8 {[%clk 0:02:29.4]}
25. f4 {[%clk 0:00:51]} 25... b5 {[%clk 0:02:30.3]} 26. Rb1 {[%clk 0:00:49.6]}
26... Rab8 {[%clk 0:02:29.5]} 27. Rb4 {[%clk 0:00:47.9]} 27... Kf8 {[%clk
0:02:29.5]} 28. Kf2 {[%clk 0:00:46]} 28... Ke7 {[%clk 0:02:29.4]} 29. Ke3 {[%clk
0:00:46.7]} 29... Kd6 {[%clk 0:02:30.5]} 30. Kd2 {[%clk 0:00:46.4]} 30... f6
{[%clk 0:02:31.3]} 31. Nf3 {[%clk 0:00:42.6]} 31... Bd7 {[%clk 0:02:32.6]} 32.
Ra2 {[%clk 0:00:38.8]} 32... h5 {[%clk 0:02:33]} 33. Ne1 {[%clk 0:00:37.3]}
33... g6 {[%clk 0:02:33.4]} 34. Nc2 {[%clk 0:00:37.7]} 34... Re8 {[%clk
0:02:34.6]} 35. g3 {[%clk 0:00:36.9]} 35... Ra8 {[%clk 0:02:35.4]} 36. Bg2
{[%clk 0:00:35.6]} 36... Nb6 {[%clk 0:02:31.3]} 37. Rxa8 {[%clk 0:00:34.4]}
37... Nxa8 {[%clk 0:02:33.2]} 38. Ne3 {[%clk 0:00:34.2]} 38... Nc7 {[%clk
0:02:33.8]} 39. Rb1 {[%clk 0:00:33.3]} 39... Bc6 {[%clk 0:02:34.9]} 40. Ra1
{[%clk 0:00:33.4]} 40... b4 {[%clk 0:02:35.3]} 41. Ra7 {[%clk 0:00:33]} 41...
Nb5 {[%clk 0:02:34.5]} 42. Ra6 {[%clk 0:00:32]} 42... Nxd4 {[%clk 0:02:31.6]}
43. Bxd5 {[%clk 0:00:32.2]} 43... c3+ {[%clk 0:02:28.4]} 44. Kd3 {[%clk
0:00:31.6]} 44... Kc5 {[%clk 0:02:18.1]} 45. Ra5+ {[%clk 0:00:17.1]} 45... Bb5+
{[%clk 0:02:19.1]} 46. Bc4 {[%clk 0:00:16.1]} 46... Rxe3+ {[%clk 0:02:20.1]} 47.
Kxe3 {[%clk 0:00:16.8]} 47... Kxc4 {[%clk 0:02:22]} 48. Ra8 {[%clk 0:00:15.4]}
48... b3 {[%clk 0:02:22.4]} 49. Rc8+ {[%clk 0:00:13.7]} 49... Nc6 {[%clk
0:02:23.4]} 0-1

[Event "*** Titled Tuesday 3|2 Blitz"]
[Site "Chess.com"]
[Date "2016.05.03"]
[Round "8"]
[White "psv98"]
[Black "cabalista"]
[Result "0-1"]
[WhiteElo "2471"]
[BlackElo "2384"]
[TimeControl "180+2"]
[EndTime "12:44:21 PDT"]
[Termination "cabalista won by resignation"]

1. e4 {[%clk 0:03:01.9]} 1... e5 {[%clk 0:03:00.3]} 2. Nf3 {[%clk 0:03:02.2]}
2... Nc6 {[%clk 0:03:00.8]} 3. Bc4 {[%clk 0:03:03.5]} 3... Nf6 {[%clk
0:03:01.2]} 4. d3 {[%clk 0:03:04.7]} 4... Bc5 {[%clk 0:03:01.6]} 5. O-O {[%clk
0:03:05.9]} 5... d6 {[%clk 0:03:01.9]} 6. a4 {[%clk 0:03:07.1]} 6... a5 {[%clk
0:02:59.5]} 7. c3 {[%clk 0:03:02]} 7... O-O {[%clk 0:02:59.5]} 8. h3 {[%clk
0:03:03.4]} 8... h6 {[%clk 0:02:59.7]} 9. Na3 {[%clk 0:03:04.7]} 9... Re8 {[%clk
0:02:45.8]} 10. Nc2 {[%clk 0:03:05.2]} 10... Ba7 {[%clk 0:02:29.6]} 11. Be3
{[%clk 0:03:05.6]} 11... Ne7 {[%clk 0:02:22.2]} 12. Bxa7 {[%clk 0:03:04.9]}
12... Rxa7 {[%clk 0:02:22.9]} 13. Ne3 {[%clk 0:03:06.8]} 13... Ng6 {[%clk
0:02:22.7]} 14. Bb3 {[%clk 0:02:56.1]} 14... c6 {[%clk 0:02:16]} 15. Re1 {[%clk
0:02:42.2]} 15... d5 {[%clk 0:02:13]} 16. Qc2 {[%clk 0:02:16.8]} 16... b6 {[%clk
0:01:56.7]} 17. Rad1 {[%clk 0:02:08.1]} 17... Rae7 {[%clk 0:01:52.9]} 18. Nf5
{[%clk 0:01:23.4]} 18... Bxf5 {[%clk 0:01:44.6]} 19. exf5 {[%clk 0:01:25.3]}
19... Nf4 {[%clk 0:01:33.6]} 20. Kh2 {[%clk 0:01:24.1]} 20... Qc8 {[%clk
0:01:33.5]} 21. g3 {[%clk 0:01:20.3]} 21... N4h5 {[%clk 0:01:32.2]} 22. Nh4
{[%clk 0:01:18.5]} 22... e4 {[%clk 0:01:26.3]} 23. dxe4 {[%clk 0:01:08.9]} 23...
Nxe4 {[%clk 0:01:26.3]} 24. Re3 {[%clk 0:01:03.6]} 24... Qc7 {[%clk 0:01:20.9]}
25. Rf3 {[%clk 0:00:46.1]} 25... Nexg3 {[%clk 0:01:17.5]} 26. Kg2 {[%clk
0:00:39.8]} 26... Ne4 {[%clk 0:01:08.6]} 27. Rg1 {[%clk 0:00:38]} 27... Ng5
{[%clk 0:01:07]} 28. f6 {[%clk 0:00:35.1]} 28... Re2 {[%clk 0:01:04.9]} 29. Qf5
{[%clk 0:00:28.2]} 29... R8e5 {[%clk 0:00:56.3]} 30. Qg4 {[%clk 0:00:23.3]}
30... Nxf3 {[%clk 0:00:50.1]} 31. Nxf3 {[%clk 0:00:19.3]} 31... Nxf6 {[%clk
0:00:48.4]} 32. Qf4 {[%clk 0:00:07.5]} 32... Rg5+ {[%clk 0:00:46.2]} 0-1